fUST/lending_fUST_20250626
["ID","MTS","AMOUNT","RATE_DAILY","PERIOD"]
[367825624,1750937440634,-460.0,0.00016712,2]
[367825626,1750937440643,-460.0,0.00016712,2]
[367825628,1750937440652,-180.04336847,0.00016712,2]
[367825630,1750937440662,-460.0,0.00016712,2]
[367825632,1750937440671,-502.66720533,0.00016712,2]
[367825634,1750937440680,-289.98155882,0.00016712,2]
[367825636,1750937440690,-460.0,0.00016712,2]
[367825638,1750937440700,-460.0,0.00016712,2]
[367825640,1750937440709,-461.10972175,0.00016712,2]
[367825642,1750937440719,-460.0,0.00016712,2]
[367825644,1750937440728,-460.0,0.00016712,2]
[367825646,1750937440738,-460.0,0.00016712,2]
[367825648,1750937440747,-460.0,0.00016712,2]
[367825650,1750937440756,-451.43174198,0.00016712,2]
[367825652,1750937440765,-475.68,0.00016712,2]
[367825654,1750937440774,-460.0,0.00016712,2]
[367825656,1750937440783,-460.0,0.00016712,2]
[367825658,1750937440793,-460.0,0.00016712,2]
[367825660,1750937440803,-460.0,0.00016712,2]
[367825662,1750937440813,-551.12064414,0.00016712,2]
[367825664,1750937440821,-460.0,0.00016712,2]
[367825666,1750937440830,-460.0,0.00016712,2]
[367825668,1750937440840,-460.0,0.00016712,2]
[367825669,1750937440849,-460.0,0.00016712,2]
[367825671,1750937440858,-460.0,0.00016712,2]
[367825673,1750937440867,-799.04,0.00016712,2]
[367825675,1750937440877,-460.0,0.00016712,2]
[367825677,1750937440887,-460.0,0.00016712,2]
[367825678,1750937440896,-460.0,0.00016712,2]
[367825681,1750937440906,-460.0,0.00016712,2]
[367825683,1750937440916,-460.0,0.00016712,2]
[367825685,1750937440926,-460.0,0.00016712,2]
[367825687,1750937440935,-307.6699977,0.00016712,2]
[367825689,1750937440943,-460.0,0.00016712,2]
[367825691,1750937440953,-460.0,0.00016712,2]
[367825693,1750937440962,-460.0,0.00016712,2]
[367825694,1750937440972,-460.0,0.00016712,2]
[367825696,1750937440982,-460.0,0.00016712,2]
[367825698,1750937440994,-460.0,0.00016712,2]
[367825700,1750937441003,-460.0,0.00016712,2]
[367825702,1750937441012,-460.5,0.00016712,2]
[367825704,1750937441021,-460.0,0.00016712,2]
[367825706,1750937441030,-310.87714299,0.00016712,2]
[367825708,1750937441040,-460.0,0.00016712,2]
[367825710,1750937441050,-460.0,0.00016712,2]
[367825711,1750937441059,-460.0,0.00016712,2]
[367825712,1750937441069,-460.0,0.00016712,2]
[367825713,1750937441078,-460.0,0.00016712,2]
[367825714,1750937441087,-460.0,0.00016712,2]
[367825715,1750937441096,-460.0,0.00016712,2]
[367825716,1750937441106,-460.0,0.00016712,2]
[367825717,1750937441115,-460.0,0.00016712,2]
[367825718,1750937441124,-460.0,0.00016712,2]
[367825719,1750937441134,-514.6,0.00016712,2]
[367825720,1750937441143,-460.0,0.00016712,2]
[367825721,1750937441153,-460.0,0.00016712,2]
[367825722,1750937441162,-460.0,0.00016712,2]
[367825723,1750937441171,-460.0,0.00016712,2]
[367825724,1750937441180,-460.0,0.00016712,2]
[367825725,1750937441190,-460.0,0.00016712,2]
[367825726,1750937441199,-460.0,0.00016712,2]
[367825727,1750937441208,-460.0,0.00016712,2]
[367825728,1750937441218,-460.0,0.00016712,2]
[367825729,1750937441228,-1825.69,0.00016712,2]
[367825730,1750937441237,-460.0,0.00016712,2]
[367825731,1750937441247,-460.0,0.00016712,2]
[367825732,1750937441256,-634.71,0.00016712,2]
[367825733,1750937441266,-460.0,0.00016712,2]
[367825734,1750937441274,-460.0,0.00016712,2]
[367825735,1750937441284,-460.0,0.00016712,2]
[367825736,1750937441293,-560.37,0.00016712,2]
[367825737,1750937441303,-532.05,0.00016712,2]
[367825738,1750937441313,-853.49,0.00016712,2]
[367825739,1750937441322,-749.37,0.00016712,2]
[367825740,1750937441331,-460.0,0.00016712,2]
[367825741,1750937441340,-460.0,0.00016712,2]
[367825742,1750937441350,-245.9012214,0.00016712,2]
[367825743,1750937441359,-750.66,0.00016712,2]
[367825744,1750937441369,-493.63,0.00016712,2]
[367825745,1750937441378,-460.0,0.00016712,2]
[367825746,1750937441388,-2230.64,0.00016712,2]
[367825747,1750937441399,-1483.5,0.00016712,2]
[367825748,1750937441408,-460.0,0.00016712,2]
[367825749,1750937441417,-460.0,0.00016712,2]
[367825750,1750937441427,-460.0,0.00016712,2]
[367825751,1750937441436,-460.0,0.00016712,2]
[367825752,1750937441445,-631.3,0.00016712,2]
[367825753,1750937441454,-460.0,0.00016712,2]
[367825754,1750937441464,-460.0,0.00016712,2]
[367825755,1750937441473,-555.27,0.00016712,2]
[367825756,1750937441483,-603.69,0.00016712,2]
[367825757,1750937441492,-1037.78,0.00016712,2]
[367825758,1750937441502,-480.66,0.00016712,2]
[367825759,1750937441511,-460.0,0.00016712,2]
[367825760,1750937441521,-460.0,0.00016712,2]
[367825761,1750937441531,-460.0,0.00016712,2]
[367825762,1750937441540,-460.0,0.00016712,2]
[367825763,1750937441550,-460.0,0.00016712,2]
[367825764,1750937441559,-460.0,0.00016712,2]
[367825765,1750937441568,-460.0,0.00016712,2]
[367825766,1750937441577,-1376.23,0.00016712,2]
[367825767,1750937441586,-460.0,0.00016712,2]
[367825768,1750937441595,-1547.65,0.00016712,2]
[367825769,1750937441604,-460.0,0.00016712,2]
[367825770,1750937441614,-1342.13,0.00016712,2]
[367825771,1750937441623,-460.0,0.00016712,2]
[367825772,1750937441632,-460.0,0.00016712,2]
[367825773,1750937441641,-460.0,0.00016712,2]
[367825774,1750937441651,-460.0,0.00016712,2]
[367825775,1750937441660,-460.0,0.00016712,2]
[367825776,1750937441669,-460.0,0.00016712,2]
[367825777,1750937441679,-460.0,0.00016712,2]
[367825778,1750937441688,-460.0,0.00016712,2]
[367825779,1750937441698,-666.66,0.00016712,2]
[367825780,1750937441708,-460.0,0.00016712,2]
[367825781,1750937441717,-460.0,0.00016712,2]
[367825782,1750937441726,-460.0,0.00016712,2]
[367825783,1750937441736,-1051.88,0.00016712,2]
[367825784,1750937441746,-460.0,0.00016712,2]
[367825785,1750937441756,-584.27,0.00016712,2]
[367825786,1750937441765,-1471.85,0.00016712,2]
[367825787,1750937441775,-1058.47,0.00016712,2]
[367825788,1750937441784,-460.0,0.00016712,2]
[367825789,1750937441793,-460.0,0.00016712,2]
[367825790,1750937441803,-3674.9,0.00016712,2]
[367825791,1750937441812,-460.0,0.00016712,2]
[367825792,1750937441822,-488.35,0.00016712,2]
[367825793,1750937441830,-460.0,0.00016712,2]
[367825794,1750937441838,-460.0,0.00016712,2]
[367825795,1750937441846,-460.0,0.00016712,2]
[367825796,1750937441855,-460.0,0.00016712,2]
[367825797,1750937441864,-460.0,0.00016712,2]
[367825798,1750937441874,-1781.52,0.00016712,2]
[367825799,1750937441883,-460.0,0.00016712,2]
[367825800,1750937441893,-765.93,0.00016712,2]
[367825801,1750937441902,-460.0,0.00016712,2]
[367825802,1750937441911,-460.0,0.00016712,2]
[367825803,1750937441920,-1905.24,0.00016712,2]
[367825804,1750937441930,-460.0,0.00016712,2]
[367825805,1750937441939,-1426.6,0.00016712,2]
[367825806,1750937441949,-395.48,0.00016712,2]
[367825807,1750937441958,-845.79,0.00016712,2]
[367825808,1750937441967,-460.0,0.00016712,2]
[367825809,1750937441977,-552.93,0.00016712,2]
[367825810,1750937441986,-460.0,0.00016712,2]
[367825811,1750937441999,-460.0,0.00016712,2]
[367825812,1750937442008,-3344.72,0.00016712,2]
[367825813,1750937442017,-460.0,0.00016712,2]
[367825814,1750937442027,-460.0,0.00016712,2]
[367825815,1750937442036,-460.0,0.00016712,2]
[367825816,1750937442046,-460.0,0.00016712,2]
[367825817,1750937442055,-460.0,0.00016712,2]
[367825818,1750937442065,-460.0,0.00016712,2]
[367825819,1750937442074,-725.47,0.00016712,2]
[367825820,1750937442084,-681.48,0.00016712,2]
[367825821,1750937442093,-460.0,0.00016712,2]
[367825822,1750937442102,-460.0,0.00016712,2]
[367825823,1750937442111,-460.0,0.00016712,2]
[367825824,1750937442120,-460.0,0.00016712,2]
[367825825,1750937442129,-1451.19,0.00016712,2]
[367825826,1750937442138,-460.0,0.00016712,2]
[367825827,1750937442148,-2357.2,0.00016712,2]
[367825828,1750937442159,-460.0,0.00016712,2]
[367825829,1750937442169,-499.62,0.00016712,2]
[367825830,1750937442179,-460.0,0.00016986,2]
[367825831,1750937442189,-460.0,0.00016986,2]
[367825832,1750937442200,-460.0,0.00016986,2]
[367825833,1750937442211,-460.0,0.00016986,2]
[367825834,1750937442221,-460.0,0.00016986,2]
[367825835,1750937442231,-460.0,0.00016986,2]
[367825836,1750937442239,-460.0,0.00016986,2]
[367825837,1750937442248,-460.0,0.00016986,2]
[367825838,1750937442257,-318.40261855,0.00016986,2]
[367825839,1750937442267,-175.25392168,0.00016986,2]
[367825840,1750937442276,-463.39591802,0.00016986,2]
[367825841,1750937442287,-460.0,0.00016986,2]
[367825842,1750937442296,-460.0,0.00016986,2]
[367825843,1750937442306,-460.0,0.00016986,2]
[367825844,1750937442318,-460.0,0.00016986,2]
[367825845,1750937442329,-460.0,0.00016986,2]
[367825846,1750937442338,-460.0,0.00016986,2]
[367825847,1750937442347,-460.0,0.00016986,2]
[367825848,1750937442356,-460.0,0.00016986,2]
[367825849,1750937442365,-460.0,0.00016986,2]
[367825850,1750937442374,-460.0,0.00016986,2]
[367825851,1750937442384,-460.0,0.00016986,2]
[367825852,1750937442393,-460.0,0.00016986,2]
[367825853,1750937442402,-460.0,0.00016986,2]
[367825854,1750937442411,-460.0,0.00016986,2]
[367825855,1750937442422,-460.0,0.00016986,2]
[367825856,1750937442432,-475.68,0.00016986,2]
[367825857,1750937442442,-460.0,0.00016986,2]
[367825858,1750937442451,-460.0,0.00016986,2]
[367825859,1750937442461,-220.65,0.00016986,2]
[367825860,1750937442471,-460.0,0.00016986,2]
[367825861,1750937442481,-460.0,0.00016986,2]
[367825862,1750937442490,-352.46822449,0.00016986,2]
[367825863,1750937442499,-460.0,0.00016986,2]
[367825864,1750937442509,-460.0,0.00016986,2]
[367825865,1750937442519,-460.0,0.00016986,2]
[367825866,1750937442530,-799.04,0.00016986,2]
[367825867,1750937442539,-460.0,0.00016986,2]
[367825868,1750937442549,-460.0,0.00016986,2]
[367825869,1750937442558,-460.0,0.00016986,2]
[367825870,1750937442569,-460.0,0.00016986,2]
[367825871,1750937442578,-460.0,0.00016986,2]
[367825872,1750937442587,-460.0,0.00016986,2]
[367825873,1750937442596,-460.0,0.00016986,2]
[367825874,1750937442606,-460.0,0.00016986,2]
[367825875,1750937442615,-460.0,0.00016986,2]
[367825876,1750937442625,-460.0,0.00016986,2]
[367825877,1750937442636,-460.0,0.00016986,2]
[367825878,1750937442646,-460.0,0.00016986,2]
[367825879,1750937442655,-460.5,0.00016986,2]
[367825880,1750937442666,-212.36,0.00016986,2]
[367825881,1750937442675,-460.0,0.00016986,2]
[367825882,1750937442685,-460.0,0.00016986,2]
[367825883,1750937442695,-460.0,0.00016986,2]
[367825884,1750937442704,-435.04,0.00016986,2]
[367825885,1750937442713,-460.0,0.00016986,2]
[367825886,1750937442722,-460.0,0.00016986,2]
[367825887,1750937442731,-240.0,0.00016986,2]
[367825888,1750937442740,-460.0,0.00016986,2]
[367825889,1750937442750,-460.0,0.00016986,2]
[367825890,1750937442759,-514.6,0.00016986,2]
[367825891,1750937442769,-460.0,0.00016986,2]
[367825892,1750937442778,-460.0,0.00016986,2]
[367825893,1750937442787,-460.0,0.00016986,2]
[367825894,1750937442797,-460.0,0.00016986,2]
[367825895,1750937442807,-460.0,0.00016986,2]
[367825896,1750937442816,-460.0,0.00016986,2]
[367825897,1750937442825,-460.0,0.00016986,2]
[367825898,1750937442835,-460.0,0.00016986,2]
[367825899,1750937442844,-460.0,0.00016986,2]
[367825900,1750937442854,-1825.69,0.00016986,2]
[367825901,1750937442863,-460.0,0.00016986,2]
[367825903,1750937442872,-460.0,0.00016986,2]
[367825905,1750937442881,-634.71,0.00016986,2]
[367825907,1750937442890,-460.0,0.00016986,2]
[367825909,1750937442899,-460.0,0.00016986,2]
[367825910,1750937442908,-460.0,0.00016986,2]
[367825911,1750937442918,-560.37,0.00016986,2]
[367825912,1750937442928,-532.05,0.00016986,2]
[367825913,1750937442939,-853.49,0.00016986,2]
[367825914,1750937443077,-749.37,0.00016986,2]
[367825915,1750937443110,-460.0,0.00016986,2]
[367825916,1750937443119,-460.0,0.00016986,2]
[367825917,1750937443129,-750.66,0.00016986,2]
[367825918,1750937443138,-493.63,0.00016986,2]
[367825919,1750937443147,-460.0,0.00016986,2]
[367825920,1750937443156,-2230.64,0.00016986,2]
[367825921,1750937443166,-1483.5,0.00016986,2]
[367825922,1750937443175,-460.0,0.00016986,2]
[367825923,1750937443184,-460.0,0.00016986,2]
[367825924,1750937443194,-460.0,0.00016986,2]
[367825925,1750937443204,-460.0,0.00016986,2]
[367825926,1750937443213,-631.3,0.00016986,2]
[367825927,1750937443222,-460.0,0.00016986,2]
[367825928,1750937443231,-460.0,0.00016986,2]
[367825929,1750937443239,-555.27,0.00016986,2]
[367825930,1750937443248,-603.69,0.00016986,2]
[367825931,1750937443258,-1037.78,0.00016986,2]
[367825932,1750937443268,-480.66,0.00016986,2]
[367825933,1750937443278,-460.0,0.00016986,2]
[367825934,1750937443288,-460.0,0.00016986,2]
[367825935,1750937443298,-363.82,0.00016986,2]
[367825936,1750937443307,-460.0,0.00016986,2]
[367825937,1750937443318,-460.0,0.00016986,2]
[367825938,1750937443327,-460.0,0.00016986,2]
[367825939,1750937443337,-216.56,0.00016986,2]
[367825940,1750937443346,-1376.23,0.00016986,2]
[367825941,1750937443355,-460.0,0.00016986,2]
[367825942,1750937443364,-1547.65,0.00016986,2]
[367825943,1750937443374,-460.0,0.00016986,2]
[367825944,1750937443389,-1342.13,0.00016986,2]
[367825945,1750937443398,-460.0,0.00016986,2]
[367825946,1750937443408,-460.0,0.00016986,2]
[367825947,1750937443417,-460.0,0.00016986,2]
[367825948,1750937443427,-460.0,0.00016986,2]
[367825949,1750937443437,-460.0,0.00016986,2]
[367825950,1750937443446,-460.0,0.00016986,2]
[367825951,1750937443456,-460.0,0.00016986,2]
[367825952,1750937443465,-460.0,0.00016986,2]
[367825953,1750937443475,-666.66,0.00016986,2]
[367825954,1750937443485,-460.0,0.00016986,2]
[367825955,1750937443494,-460.0,0.00016986,2]
[367825956,1750937443503,-460.0,0.00016986,2]
[367825957,1750937443513,-1051.88,0.00016986,2]
[367825958,1750937443523,-460.0,0.00016986,2]
[367825959,1750937443533,-584.27,0.00016986,2]
[367825960,1750937443543,-1471.85,0.00016986,2]
[367825961,1750937443553,-1058.47,0.00016986,2]
[367825962,1750937443562,-460.0,0.00016986,2]
[367825963,1750937443572,-3674.9,0.00016986,2]
[367825964,1750937443582,-460.0,0.00016986,2]
[367825965,1750937443592,-460.0,0.00016986,2]
[367825966,1750937443601,-488.35,0.00016986,2]
[367825967,1750937443611,-460.0,0.00016986,2]
[367825968,1750937443620,-460.0,0.00016986,2]
[367825969,1750937443630,-385.1,0.00016986,2]
[367825970,1750937443641,-460.0,0.00016986,2]
[367825971,1750937443652,-350.65744344,0.00016986,2]
[367825972,1750937443661,-1781.52,0.00016986,2]
[367825973,1750937443671,-765.93,0.00016986,2]
[367825974,1750937443682,-460.0,0.00016986,2]
[367825975,1750937443692,-1905.24,0.00016986,2]
[367825976,1750937443703,-460.0,0.00016986,2]
[367825977,1750937443712,-1426.6,0.00016986,2]
[367825978,1750937443722,-845.79,0.00016986,2]
[367825979,1750937443732,-460.0,0.00016986,2]
[367825980,1750937443742,-552.93,0.00016986,2]
[367825981,1750937443752,-460.0,0.00016986,2]
[367825982,1750937443763,-460.0,0.00016986,2]
[367825983,1750937443772,-3344.72,0.00016986,2]
[367825984,1750937443782,-460.0,0.00016986,2]
[367825985,1750937443791,-460.0,0.00016986,2]
[367825986,1750937443801,-460.0,0.00016986,2]
[367825987,1750937443812,-460.0,0.00016986,2]
[367825988,1750937443821,-460.0,0.00016986,2]
[367825989,1750937443830,-460.0,0.00016986,2]
[367825990,1750937443840,-725.47,0.00016986,2]
[367825991,1750937443849,-681.48,0.00016986,2]
[367825992,1750937443858,-460.0,0.00016986,2]
[367825993,1750937443868,-559.76,0.00016986,2]
[367825994,1750937443877,-460.0,0.00016986,2]
[367825995,1750937443887,-460.0,0.00016986,2]
[367825996,1750937443897,-1451.19,0.00016986,2]
[367825997,1750937443906,-460.0,0.00016986,2]
[367825998,1750937443916,-2357.2,0.00016986,2]
[367825999,1750937443925,-460.0,0.00016986,2]
[367826000,1750937443935,-499.62,0.00016986,2]
[367826001,1750937443945,-7127.92680581,0.00017,2]
[367826002,1750937443956,-1762.43844578,0.00017176,2]
[367826003,1750937443967,-418.87558484,0.00017229,2]
[367826004,1750937443977,-460.0,0.0001726,2]
[367826006,1750937443987,-575.15303187,0.0001726,2]
[367826008,1750937444000,-460.0,0.0001726,2]
[367826010,1750937444010,-460.0,0.0001726,2]
[367826012,1750937444019,-460.0,0.0001726,2]
[367826013,1750937444028,-460.0,0.0001726,2]
[367826014,1750937444039,-460.0,0.0001726,2]
[367826015,1750937444048,-460.0,0.0001726,2]
[367826016,1750937444057,-460.0,0.0001726,2]
[367826017,1750937444067,-460.0,0.0001726,2]
[367826018,1750937444077,-460.0,0.0001726,2]
[367826019,1750937444088,-460.0,0.0001726,2]
[367826020,1750937444098,-460.0,0.0001726,2]
[367826021,1750937444108,-460.0,0.0001726,2]
[367826022,1750937444117,-460.0,0.0001726,2]
[367826023,1750937444127,-460.0,0.0001726,2]
[367826024,1750937444137,-460.0,0.0001726,2]
[367826025,1750937444146,-460.0,0.0001726,2]
[367826026,1750937444155,-460.0,0.0001726,2]
[367826027,1750937444165,-460.0,0.0001726,2]
[367826028,1750937444174,-460.0,0.0001726,2]
[367826029,1750937444183,-460.0,0.0001726,2]
[367826030,1750937444193,-460.0,0.0001726,2]
[367826031,1750937444202,-475.68,0.0001726,2]
[367826032,1750937444212,-460.0,0.0001726,2]
[367826033,1750937444221,-498.37,0.0001726,2]
[367826034,1750937444231,-441.09,0.0001726,2]
[367826035,1750937444241,-460.0,0.0001726,2]
[367826036,1750937444251,-460.0,0.0001726,2]
[367826037,1750937444261,-460.0,0.0001726,2]
[367826038,1750937444270,-460.0,0.0001726,2]
[367826039,1750937444279,-799.04,0.0001726,2]
[367826040,1750937444288,-460.0,0.0001726,2]
[367826041,1750937444298,-460.0,0.0001726,2]
[367826042,1750937444308,-193.37032881,0.0001726,2]
[367826043,1750937444320,-460.0,0.0001726,2]
[367826044,1750937444330,-460.0,0.0001726,2]
[367826045,1750937444339,-460.0,0.0001726,2]
[367826047,1750937444348,-460.0,0.0001726,2]
[367826049,1750937444357,-460.0,0.0001726,2]
[367826051,1750937444367,-460.0,0.0001726,2]
[367826053,1750937444377,-460.0,0.0001726,2]
[367826055,1750937444387,-460.0,0.0001726,2]
[367826057,1750937444397,-460.0,0.0001726,2]
[367826059,1750937444407,-460.5,0.0001726,2]
[367826061,1750937444418,-460.0,0.0001726,2]
[367826063,1750937444428,-460.0,0.0001726,2]
[367826065,1750937444438,-210.35241299,0.0001726,2]
[367826067,1750937444449,-460.0,0.0001726,2]
[367826069,1750937444459,-460.0,0.0001726,2]
[367826071,1750937444468,-460.0,0.0001726,2]
[367826073,1750937444479,-460.0,0.0001726,2]
[367826075,1750937444488,-514.6,0.0001726,2]
[367826077,1750937444498,-460.0,0.0001726,2]
[367826079,1750937444507,-460.0,0.0001726,2]
[367826081,1750937444517,-460.0,0.0001726,2]
[367826083,1750937444527,-460.0,0.0001726,2]
[367826085,1750937444536,-460.0,0.0001726,2]
[367826087,1750937444546,-460.0,0.0001726,2]
[367826089,1750937444555,-460.0,0.0001726,2]
[367826091,1750937444565,-460.0,0.0001726,2]
[367826093,1750937444575,-460.0,0.0001726,2]
[367826095,1750937444585,-1825.69,0.0001726,2]
[367826097,1750937444594,-460.0,0.0001726,2]
[367826099,1750937444604,-460.0,0.0001726,2]
[367826101,1750937444613,-634.71,0.0001726,2]
[367826103,1750937444623,-460.0,0.0001726,2]
[367826105,1750937444632,-460.0,0.0001726,2]
[367826107,1750937444642,-460.0,0.0001726,2]
[367826108,1750937444651,-560.37,0.0001726,2]
[367826110,1750937444662,-532.05,0.0001726,2]
[367826112,1750937444671,-853.49,0.0001726,2]
[367826114,1750937444681,-749.37,0.0001726,2]
[367826116,1750937444690,-460.0,0.0001726,2]
[367826119,1750937444700,-460.0,0.0001726,2]
[367826120,1750937444711,-750.66,0.0001726,2]
[367826122,1750937444721,-493.63,0.0001726,2]
[367826124,1750937444730,-460.0,0.0001726,2]
[367826126,1750937444740,-2230.64,0.0001726,2]
[367826128,1750937444749,-460.0,0.0001726,2]
[367826130,1750937444759,-1483.5,0.0001726,2]
[367826132,1750937444768,-460.0,0.0001726,2]
[367826134,1750937444777,-631.3,0.0001726,2]
[367826135,1750937444788,-460.0,0.0001726,2]
[367826137,1750937444797,-361.66330694,0.0001726,2]
[367826139,1750937444807,-555.27,0.0001726,2]
[367826141,1750937444817,-603.69,0.0001726,2]
[367826143,1750937444827,-1037.78,0.0001726,2]
[367826145,1750937444837,-480.66,0.0001726,2]
[367826147,1750937444846,-460.0,0.0001726,2]
[367826149,1750937444855,-529.10252154,0.0001726,2]
[367826150,1750937444863,-460.0,0.0001726,2]
[367826151,1750937444873,-460.0,0.0001726,2]
[367826152,1750937444882,-460.0,0.0001726,2]
[367826153,1750937444891,-1376.23,0.0001726,2]
[367826154,1750937444900,-460.0,0.0001726,2]
[367826155,1750937444910,-1547.65,0.0001726,2]
[367826156,1750937444919,-460.0,0.0001726,2]
[367826157,1750937444929,-1342.13,0.0001726,2]
[367826158,1750937444939,-460.0,0.0001726,2]
[367826159,1750937444948,-460.0,0.0001726,2]
[367826160,1750937444957,-460.0,0.0001726,2]
[367826161,1750937444967,-460.0,0.0001726,2]
[367826162,1750937444976,-460.0,0.0001726,2]
[367826163,1750937444986,-268.49308088,0.0001726,2]
[367826164,1750937445000,-460.0,0.0001726,2]
[367826165,1750937445009,-666.66,0.0001726,2]
[367826166,1750937445019,-460.0,0.0001726,2]
[367826168,1750937445029,-460.0,0.0001726,2]
[367826170,1750937445039,-460.0,0.0001726,2]
[367826172,1750937445049,-1051.88,0.0001726,2]
[367826174,1750937445058,-460.0,0.0001726,2]
[367826176,1750937445068,-584.27,0.0001726,2]
[367826178,1750937445078,-1471.85,0.0001726,2]
[367826180,1750937445088,-1058.47,0.0001726,2]
[367826182,1750937445097,-460.0,0.0001726,2]
[367826184,1750937445107,-3674.9,0.0001726,2]
[367826186,1750937445116,-460.0,0.0001726,2]
[367826188,1750937445125,-460.0,0.0001726,2]
[367826190,1750937445134,-488.35,0.0001726,2]
[367826192,1750937445143,-460.0,0.0001726,2]
[367826194,1750937445153,-460.0,0.0001726,2]
[367826196,1750937445163,-460.0,0.0001726,2]
[367826198,1750937445172,-1781.52,0.0001726,2]
[367826199,1750937445182,-765.93,0.0001726,2]
[367826201,1750937445191,-460.0,0.0001726,2]
[367826203,1750937445200,-1905.24,0.0001726,2]
[367826205,1750937445209,-460.0,0.0001726,2]
[367826207,1750937445218,-1426.6,0.0001726,2]
[367826209,1750937445228,-845.79,0.0001726,2]
[367826211,1750937445238,-460.0,0.0001726,2]
[367826213,1750937445247,-552.93,0.0001726,2]
[367826215,1750937445256,-460.0,0.0001726,2]
[367826217,1750937445266,-488.51603678,0.0001726,2]
[367826219,1750937445275,-3344.72,0.0001726,2]
[367826220,1750937445285,-460.0,0.0001726,2]
[367826222,1750937445295,-460.0,0.0001726,2]
[367826224,1750937445304,-460.0,0.0001726,2]
[367826226,1750937445314,-460.0,0.0001726,2]
[367826228,1750937445323,-460.0,0.0001726,2]
[367826230,1750937445332,-725.47,0.0001726,2]
[367826232,1750937445342,-681.48,0.0001726,2]
[367826234,1750937445352,-460.0,0.0001726,2]
[367826236,1750937445362,-460.0,0.0001726,2]
[367826238,1750937445372,-460.0,0.0001726,2]
[367826240,1750937445381,-1451.19,0.0001726,2]
[367826242,1750937445391,-460.0,0.0001726,2]
[367826244,1750937445401,-2357.2,0.0001726,2]
[367826246,1750937445410,-460.0,0.0001726,2]
[367826248,1750937445419,-499.62,0.0001726,2]
[367826250,1750937445429,-460.0,0.00017534,2]
[367826252,1750937445438,-460.0,0.00017534,2]
[367826258,1750937445484,-460.0,0.00017534,2]
[367826260,1750937445493,-263.17465623,0.00017534,2]
[367826262,1750937445503,-460.0,0.00017534,2]
[367826263,1750937445512,-160.48617196,0.00017534,2]
[367826265,1750937445522,-551.91861802,0.00017534,2]
[367826267,1750937445531,-425.148073,0.00017534,2]
[367826269,1750937445540,-460.0,0.00017534,2]
[367826271,1750937445550,-460.0,0.00017534,2]
[367826273,1750937445559,-460.0,0.00017534,2]
[367826275,1750937445568,-460.0,0.00017534,2]
[367826277,1750937445577,-460.0,0.00017534,2]
[367826279,1750937445586,-460.0,0.00017534,2]
[367826281,1750937445595,-460.0,0.00017534,2]
[367826283,1750937445603,-460.0,0.00017534,2]